{"text_format":"3","workbook":"xlsx","n_sheets":2,"sheets":["Svara zaudēšanas uzskaite","Aprēķini"],"not_rendered":{"charts":1,"defined_names":7},"read":"whole","date_system":"1900"}

{"sheet":"Svara zaudēšanas uzskaite","index":0,"n_rows":129,"n_cols":11,"rows_kept":129,"merged":[[0,5,0,9],[1,6,3,9]]}
[null,"MĒRĶA SVARS","DIAGRAMMAS SKATS",null,null," NANSIJAS SVARA SAMAZINĀŠANA"]
[{"$nulls":6},"IZSEKOTĀJS"]
[null,{"v":172,"d":"172.0"},"NEDĒĻAS",{"$nulls":7}," "]
[]
[]
[{"$nulls":10}," "]
{"$rows_empty":18}
[null,"DATUMS","SVARS"]
[null,"2012-11-30",{"v":176,"d":"176.0"}]
[null,"2012-12-07",{"v":176,"d":"176.0"}]
[null,"2012-12-14",177.6]
[null,"2012-12-21",176.5]
[null,"2012-12-28",176.1]
[null,"2013-01-04",{"v":174,"d":"174.0"}]
[null,"2013-01-11",{"v":173,"d":"173.0"}]
[null,"2013-01-18",{"v":172,"d":"172.0"}]
[null,"2013-01-25",{"v":172,"d":"172.0"}]
[null,"2013-02-01",{"v":173,"d":"173.0"}]
[null,"2013-02-08",{"v":174,"d":"174.0"}]
[null,"2013-02-15",{"v":175,"d":"175.0"}]
[null,"2013-02-22"]
[null,"2013-03-01"]
[null,"2013-03-08"]
[null,"2013-03-15"]
[null,"2013-03-22"]
[null,"2013-03-29"]
[null,"2013-04-05"]
[null,"2013-04-12"]
[null,"2013-04-19"]
[null,"2013-04-26"]
[null,"2013-05-03"]
[null,"2013-05-10"]
[null,"2013-05-17"]
[null,"2013-05-24"]
[null,"2013-05-31"]
[null,"2013-06-07"]
[null,"2013-06-14"]
[null,"2013-06-21"]
[null,"2013-06-28"]
[null,"2013-07-05"]
[null,"2013-07-12"]
[null,"2013-07-19"]
[null,"2013-07-26"]
[null,"2013-08-02"]
[null,"2013-08-09"]
[null,"2013-08-16"]
[null,"2013-08-23"]
[null,"2013-08-30"]
[null,"2013-09-06"]
[null,"2013-09-13"]
[null,"2013-09-20"]
[null,"2013-09-27"]
[null,"2013-10-04"]
[null,"2013-10-11"]
[null,"2013-10-18"]
[null,"2013-10-25"]
[null,"2013-11-01"]
[null,"2013-11-08"]
[null,"2013-11-15"]
[null,"2013-11-22"]
[null,"2013-11-29"]
[null,"2013-12-06"]
[null,"2013-12-13"]
[null,"2013-12-20"]
[null,"2013-12-27"]
[null,"2014-01-03"]
[null,"2014-01-10"]
[null,"2014-01-17"]
[null,"2014-01-24"]
[null,"2014-01-31"]
[null,"2014-02-07"]
[null,"2014-02-14"]
[null,"2014-02-21"]
[null,"2014-02-28"]
[null,"2014-03-07"]
[null,"2014-03-14"]
[null,"2014-03-21"]
[null,"2014-03-28"]
[null,"2014-04-04"]
[null,"2014-04-11"]
[null,"2014-04-18"]
[null,"2014-04-25"]
[null,"2014-05-02"]
[null,"2014-05-09"]
[null,"2014-05-16"]
[null,"2014-05-23"]
[null,"2014-05-30"]
[null,"2014-06-06"]
[null,"2014-06-13"]
[null,"2014-06-20"]
[null,"2014-06-27"]
[null,"2014-07-04"]
[null,"2014-07-11"]
[null,"2014-07-18"]
[null,"2014-07-25"]
[null,"2014-08-01"]
[null,"2014-08-08"]
[null,"2014-08-15"]
[null,"2014-08-22"]
[null,"2014-08-29"]
[null,"2014-09-05"]
[null,"2014-09-12"]
[null,"2014-09-19"]
[null,"2014-09-26"]
[null,"2014-10-03"]
[null,"2014-10-10"]
[null,"2014-10-17"]
[null,"2014-10-24"]
[null,"2014-10-31"]
[null,"2014-11-07"]
[null,"2014-11-14"]
[null,"2014-11-21"]

{"sheet":"Aprēķini","index":1,"n_rows":108,"n_cols":17,"rows_kept":108,"hidden":true}
["*** Šai lapai jāpaliek slēptai. ***"]
[]
[{"$f":"COUNTIF(A5:A108,FALSE)","v":13},"Periodi","Vērtības",{"$nulls":3},{"$f":"COUNTIF(H5:H28,\">\"&0)","v":4},"Periodi",null,"Vērtības"]
[null,"Nedēļa",null,null,true,null,null,"Mēnesis","MĒNEŠA BEIGAS"]
[{"$f":"IF(('Svara zaudēšanas uzskaite'!C26=0)*('Svara zaudēšanas uzskaite'!C25=0),TRUE)","v":false},{"$f":"IF(A5,0,IF('Svara zaudēšanas uzskaite'!B26=0,'Svara zaudēšanas uzskaite'!B25+5,'Svara zaudēšanas uzskaite'!B26))","v":"2012-11-30"},{"$f":"'Svara zaudēšanas uzskaite'!C26","v":176},{"$f":"MIN(DiagrammasPeriodi)","v":"2012-11-30"},{"$f":"IF($E$4,MērķaSvars,NA())","v":172},null,null,{"$f":"DATE(YEAR(B5),MONTH(B5),1)","v":"2012-11-01"},{"$f":"EOMONTH(H5,0)","v":"2012-11-30"},{"$f":"IFERROR(AVERAGEIFS(SvaruTabula[SVARS],SvaruTabula[DATUMS],\">=\"&H5,SvaruTabula[DATUMS],\"<=\"&I5),NA())","v":176}]
[{"$f":"IF(('Svara zaudēšanas uzskaite'!C27=0)*('Svara zaudēšanas uzskaite'!C26=0),TRUE)","v":false},{"$f":"IF(A6,0,IF('Svara zaudēšanas uzskaite'!B27=0,'Svara zaudēšanas uzskaite'!B26+5,'Svara zaudēšanas uzskaite'!B27))","v":"2012-12-07"},{"$f":"'Svara zaudēšanas uzskaite'!C27","v":176},{"$f":"MAX(DiagrammasPeriodi)","v":"2013-02-22"},172,null,null,{"$f":"IF(I5+1>MAX($B:$B),NA(),I5+1)","v":"2012-12-01"},"2012-12-31",{"$f":"IFERROR(AVERAGEIFS(SvaruTabula[SVARS],SvaruTabula[DATUMS],\">=\"&H6,SvaruTabula[DATUMS],\"<=\"&I6),NA())","v":176.55}]
[{"$f":"IF(('Svara zaudēšanas uzskaite'!C28=0)*('Svara zaudēšanas uzskaite'!C27=0),TRUE)","v":false},{"$f":"IF(A7,0,IF('Svara zaudēšanas uzskaite'!B28=0,'Svara zaudēšanas uzskaite'!B27+5,'Svara zaudēšanas uzskaite'!B28))","v":"2012-12-14"},{"$f":"'Svara zaudēšanas uzskaite'!C28","v":177.6},{"$nulls":4},{"$f":"IF(I6+1>MAX($B:$B),NA(),I6+1)","v":"2013-01-01"},"2013-01-31",{"$f":"IFERROR(AVERAGEIFS(SvaruTabula[SVARS],SvaruTabula[DATUMS],\">=\"&H7,SvaruTabula[DATUMS],\"<=\"&I7),NA())","v":172.75}]
[{"$f":"IF(('Svara zaudēšanas uzskaite'!C29=0)*('Svara zaudēšanas uzskaite'!C28=0),TRUE)","v":false},{"$f":"IF(A8,0,IF('Svara zaudēšanas uzskaite'!B29=0,'Svara zaudēšanas uzskaite'!B28+5,'Svara zaudēšanas uzskaite'!B29))","v":"2012-12-21"},{"$f":"'Svara zaudēšanas uzskaite'!C29","v":176.5},{"$nulls":4},"2013-02-01","2013-02-28",{"$f":"IFERROR(AVERAGEIFS(SvaruTabula[SVARS],SvaruTabula[DATUMS],\">=\"&H8,SvaruTabula[DATUMS],\"<=\"&I8),NA())","v":174}]
[{"$f":"IF(('Svara zaudēšanas uzskaite'!C30=0)*('Svara zaudēšanas uzskaite'!C29=0),TRUE)","v":false},{"$f":"IF(A9,0,IF('Svara zaudēšanas uzskaite'!B30=0,'Svara zaudēšanas uzskaite'!B29+5,'Svara zaudēšanas uzskaite'!B30))","v":"2012-12-28"},{"$f":"'Svara zaudēšanas uzskaite'!C30","v":176.1},{"$nulls":4},{"$error":"#N/A"},{"$error":"#N/A"},{"$f":"IFERROR(AVERAGEIFS(SvaruTabula[SVARS],SvaruTabula[DATUMS],\">=\"&H9,SvaruTabula[DATUMS],\"<=\"&I9),NA())","v":{"$error":"#N/A"}}]
[{"$f":"IF(('Svara zaudēšanas uzskaite'!C31=0)*('Svara zaudēšanas uzskaite'!C30=0),TRUE)","v":false},{"$f":"IF(A10,0,IF('Svara zaudēšanas uzskaite'!B31=0,'Svara zaudēšanas uzskaite'!B30+5,'Svara zaudēšanas uzskaite'!B31))","v":"2013-01-04"},{"$f":"'Svara zaudēšanas uzskaite'!C31","v":174},{"$nulls":4},{"$error":"#N/A"},{"$error":"#N/A"},{"$f":"IFERROR(AVERAGEIFS(SvaruTabula[SVARS],SvaruTabula[DATUMS],\">=\"&H10,SvaruTabula[DATUMS],\"<=\"&I10),NA())","v":{"$error":"#N/A"}}]
[{"$f":"IF(('Svara zaudēšanas uzskaite'!C32=0)*('Svara zaudēšanas uzskaite'!C31=0),TRUE)","v":false},{"$f":"IF(A11,0,IF('Svara zaudēšanas uzskaite'!B32=0,'Svara zaudēšanas uzskaite'!B31+5,'Svara zaudēšanas uzskaite'!B32))","v":"2013-01-11"},{"$f":"'Svara zaudēšanas uzskaite'!C32","v":173},{"$nulls":4},{"$error":"#N/A"},{"$error":"#N/A"},{"$f":"IFERROR(AVERAGEIFS(SvaruTabula[SVARS],SvaruTabula[DATUMS],\">=\"&H11,SvaruTabula[DATUMS],\"<=\"&I11),NA())","v":{"$error":"#N/A"}},{"$nulls":6},{"$f":"MAX($B:$B)","v":"2013-02-22"}]
[{"$f":"IF(('Svara zaudēšanas uzskaite'!C33=0)*('Svara zaudēšanas uzskaite'!C32=0),TRUE)","v":false},{"$f":"IF(A12,0,IF('Svara zaudēšanas uzskaite'!B33=0,'Svara zaudēšanas uzskaite'!B32+5,'Svara zaudēšanas uzskaite'!B33))","v":"2013-01-18"},{"$f":"'Svara zaudēšanas uzskaite'!C33","v":172},{"$nulls":4},{"$error":"#N/A"},{"$error":"#N/A"},{"$f":"IFERROR(AVERAGEIFS(SvaruTabula[SVARS],SvaruTabula[DATUMS],\">=\"&H12,SvaruTabula[DATUMS],\"<=\"&I12),NA())","v":{"$error":"#N/A"}}]
[{"$f":"IF(('Svara zaudēšanas uzskaite'!C34=0)*('Svara zaudēšanas uzskaite'!C33=0),TRUE)","v":false},{"$f":"IF(A13,0,IF('Svara zaudēšanas uzskaite'!B34=0,'Svara zaudēšanas uzskaite'!B33+5,'Svara zaudēšanas uzskaite'!B34))","v":"2013-01-25"},{"$f":"'Svara zaudēšanas uzskaite'!C34","v":172},{"$nulls":4},{"$error":"#N/A"},{"$error":"#N/A"},{"$f":"IFERROR(AVERAGEIFS(SvaruTabula[SVARS],SvaruTabula[DATUMS],\">=\"&H13,SvaruTabula[DATUMS],\"<=\"&I13),NA())","v":{"$error":"#N/A"}}]
[{"$f":"IF(('Svara zaudēšanas uzskaite'!C35=0)*('Svara zaudēšanas uzskaite'!C34=0),TRUE)","v":false},{"$f":"IF(A14,0,IF('Svara zaudēšanas uzskaite'!B35=0,'Svara zaudēšanas uzskaite'!B34+5,'Svara zaudēšanas uzskaite'!B35))","v":"2013-02-01"},{"$f":"'Svara zaudēšanas uzskaite'!C35","v":173},{"$nulls":4},{"$error":"#N/A"},{"$error":"#N/A"},{"$f":"IFERROR(AVERAGEIFS(SvaruTabula[SVARS],SvaruTabula[DATUMS],\">=\"&H14,SvaruTabula[DATUMS],\"<=\"&I14),NA())","v":{"$error":"#N/A"}}]
[{"$f":"IF(('Svara zaudēšanas uzskaite'!C36=0)*('Svara zaudēšanas uzskaite'!C35=0),TRUE)","v":false},{"$f":"IF(A15,0,IF('Svara zaudēšanas uzskaite'!B36=0,'Svara zaudēšanas uzskaite'!B35+5,'Svara zaudēšanas uzskaite'!B36))","v":"2013-02-08"},{"$f":"'Svara zaudēšanas uzskaite'!C36","v":174},{"$nulls":4},{"$error":"#N/A"},{"$error":"#N/A"},{"$f":"IFERROR(AVERAGEIFS(SvaruTabula[SVARS],SvaruTabula[DATUMS],\">=\"&H15,SvaruTabula[DATUMS],\"<=\"&I15),NA())","v":{"$error":"#N/A"}}]
[{"$f":"IF(('Svara zaudēšanas uzskaite'!C37=0)*('Svara zaudēšanas uzskaite'!C36=0),TRUE)","v":false},{"$f":"IF(A16,0,IF('Svara zaudēšanas uzskaite'!B37=0,'Svara zaudēšanas uzskaite'!B36+5,'Svara zaudēšanas uzskaite'!B37))","v":"2013-02-15"},{"$f":"'Svara zaudēšanas uzskaite'!C37","v":175},{"$nulls":4},{"$error":"#N/A"},{"$error":"#N/A"},{"$f":"IFERROR(AVERAGEIFS(SvaruTabula[SVARS],SvaruTabula[DATUMS],\">=\"&H16,SvaruTabula[DATUMS],\"<=\"&I16),NA())","v":{"$error":"#N/A"}}]
[{"$f":"IF(('Svara zaudēšanas uzskaite'!C38=0)*('Svara zaudēšanas uzskaite'!C37=0),TRUE)","v":false},{"$f":"IF(A17,0,IF('Svara zaudēšanas uzskaite'!B38=0,'Svara zaudēšanas uzskaite'!B37+5,'Svara zaudēšanas uzskaite'!B38))","v":"2013-02-22"},{"$f":"'Svara zaudēšanas uzskaite'!C38","v":0},{"$nulls":4},{"$error":"#N/A"},{"$error":"#N/A"},{"$f":"IFERROR(AVERAGEIFS(SvaruTabula[SVARS],SvaruTabula[DATUMS],\">=\"&H17,SvaruTabula[DATUMS],\"<=\"&I17),NA())","v":{"$error":"#N/A"}}]
[{"$f":"IF(('Svara zaudēšanas uzskaite'!C39=0)*('Svara zaudēšanas uzskaite'!C38=0),TRUE)","v":true},{"$f":"IF(A18,0,IF('Svara zaudēšanas uzskaite'!B39=0,'Svara zaudēšanas uzskaite'!B38+5,'Svara zaudēšanas uzskaite'!B39))","v":"00:00:00"},{"$f":"'Svara zaudēšanas uzskaite'!C39","v":0},{"$nulls":4},{"$error":"#N/A"},{"$error":"#N/A"},{"$f":"IFERROR(AVERAGEIFS(SvaruTabula[SVARS],SvaruTabula[DATUMS],\">=\"&H18,SvaruTabula[DATUMS],\"<=\"&I18),NA())","v":{"$error":"#N/A"}}]
[{"$f":"IF(('Svara zaudēšanas uzskaite'!C40=0)*('Svara zaudēšanas uzskaite'!C39=0),TRUE)","v":true},{"$f":"IF(A19,0,IF('Svara zaudēšanas uzskaite'!B40=0,'Svara zaudēšanas uzskaite'!B39+5,'Svara zaudēšanas uzskaite'!B40))","v":"00:00:00"},{"$f":"'Svara zaudēšanas uzskaite'!C40","v":0},{"$nulls":4},{"$error":"#N/A"},{"$error":"#N/A"},{"$f":"IFERROR(AVERAGEIFS(SvaruTabula[SVARS],SvaruTabula[DATUMS],\">=\"&H19,SvaruTabula[DATUMS],\"<=\"&I19),NA())","v":{"$error":"#N/A"}}]
[{"$f":"IF(('Svara zaudēšanas uzskaite'!C41=0)*('Svara zaudēšanas uzskaite'!C40=0),TRUE)","v":true},{"$f":"IF(A20,0,IF('Svara zaudēšanas uzskaite'!B41=0,'Svara zaudēšanas uzskaite'!B40+5,'Svara zaudēšanas uzskaite'!B41))","v":"00:00:00"},{"$f":"'Svara zaudēšanas uzskaite'!C41","v":0},{"$nulls":4},{"$error":"#N/A"},{"$error":"#N/A"},{"$f":"IFERROR(AVERAGEIFS(SvaruTabula[SVARS],SvaruTabula[DATUMS],\">=\"&H20,SvaruTabula[DATUMS],\"<=\"&I20),NA())","v":{"$error":"#N/A"}}]
[{"$f":"IF(('Svara zaudēšanas uzskaite'!C42=0)*('Svara zaudēšanas uzskaite'!C41=0),TRUE)","v":true},{"$f":"IF(A21,0,IF('Svara zaudēšanas uzskaite'!B42=0,'Svara zaudēšanas uzskaite'!B41+5,'Svara zaudēšanas uzskaite'!B42))","v":"00:00:00"},{"$f":"'Svara zaudēšanas uzskaite'!C42","v":0},{"$nulls":4},{"$error":"#N/A"},{"$error":"#N/A"},{"$f":"IFERROR(AVERAGEIFS(SvaruTabula[SVARS],SvaruTabula[DATUMS],\">=\"&H21,SvaruTabula[DATUMS],\"<=\"&I21),NA())","v":{"$error":"#N/A"}}]
[{"$f":"IF(('Svara zaudēšanas uzskaite'!C43=0)*('Svara zaudēšanas uzskaite'!C42=0),TRUE)","v":true},{"$f":"IF(A22,0,IF('Svara zaudēšanas uzskaite'!B43=0,'Svara zaudēšanas uzskaite'!B42+5,'Svara zaudēšanas uzskaite'!B43))","v":"00:00:00"},{"$f":"'Svara zaudēšanas uzskaite'!C43","v":0},{"$nulls":4},{"$error":"#N/A"},{"$error":"#N/A"},{"$f":"IFERROR(AVERAGEIFS(SvaruTabula[SVARS],SvaruTabula[DATUMS],\">=\"&H22,SvaruTabula[DATUMS],\"<=\"&I22),NA())","v":{"$error":"#N/A"}}]
[{"$f":"IF(('Svara zaudēšanas uzskaite'!C44=0)*('Svara zaudēšanas uzskaite'!C43=0),TRUE)","v":true},{"$f":"IF(A23,0,IF('Svara zaudēšanas uzskaite'!B44=0,'Svara zaudēšanas uzskaite'!B43+5,'Svara zaudēšanas uzskaite'!B44))","v":"00:00:00"},{"$f":"'Svara zaudēšanas uzskaite'!C44","v":0},{"$nulls":4},{"$error":"#N/A"},{"$error":"#N/A"},{"$f":"IFERROR(AVERAGEIFS(SvaruTabula[SVARS],SvaruTabula[DATUMS],\">=\"&H23,SvaruTabula[DATUMS],\"<=\"&I23),NA())","v":{"$error":"#N/A"}}]
[{"$f":"IF(('Svara zaudēšanas uzskaite'!C45=0)*('Svara zaudēšanas uzskaite'!C44=0),TRUE)","v":true},{"$f":"IF(A24,0,IF('Svara zaudēšanas uzskaite'!B45=0,'Svara zaudēšanas uzskaite'!B44+5,'Svara zaudēšanas uzskaite'!B45))","v":"00:00:00"},{"$f":"'Svara zaudēšanas uzskaite'!C45","v":0},{"$nulls":4},{"$error":"#N/A"},{"$error":"#N/A"},{"$f":"IFERROR(AVERAGEIFS(SvaruTabula[SVARS],SvaruTabula[DATUMS],\">=\"&H24,SvaruTabula[DATUMS],\"<=\"&I24),NA())","v":{"$error":"#N/A"}}]
[{"$f":"IF(('Svara zaudēšanas uzskaite'!C46=0)*('Svara zaudēšanas uzskaite'!C45=0),TRUE)","v":true},{"$f":"IF(A25,0,IF('Svara zaudēšanas uzskaite'!B46=0,'Svara zaudēšanas uzskaite'!B45+5,'Svara zaudēšanas uzskaite'!B46))","v":"00:00:00"},{"$f":"'Svara zaudēšanas uzskaite'!C46","v":0},{"$nulls":4},{"$error":"#N/A"},{"$error":"#N/A"},{"$f":"IFERROR(AVERAGEIFS(SvaruTabula[SVARS],SvaruTabula[DATUMS],\">=\"&H25,SvaruTabula[DATUMS],\"<=\"&I25),NA())","v":{"$error":"#N/A"}}]
[{"$f":"IF(('Svara zaudēšanas uzskaite'!C47=0)*('Svara zaudēšanas uzskaite'!C46=0),TRUE)","v":true},{"$f":"IF(A26,0,IF('Svara zaudēšanas uzskaite'!B47=0,'Svara zaudēšanas uzskaite'!B46+5,'Svara zaudēšanas uzskaite'!B47))","v":"00:00:00"},{"$f":"'Svara zaudēšanas uzskaite'!C47","v":0},{"$nulls":4},{"$error":"#N/A"},{"$error":"#N/A"},{"$f":"IFERROR(AVERAGEIFS(SvaruTabula[SVARS],SvaruTabula[DATUMS],\">=\"&H26,SvaruTabula[DATUMS],\"<=\"&I26),NA())","v":{"$error":"#N/A"}}]
[{"$f":"IF(('Svara zaudēšanas uzskaite'!C48=0)*('Svara zaudēšanas uzskaite'!C47=0),TRUE)","v":true},{"$f":"IF(A27,0,IF('Svara zaudēšanas uzskaite'!B48=0,'Svara zaudēšanas uzskaite'!B47+5,'Svara zaudēšanas uzskaite'!B48))","v":"00:00:00"},{"$f":"'Svara zaudēšanas uzskaite'!C48","v":0},{"$nulls":4},{"$error":"#N/A"},{"$error":"#N/A"},{"$f":"IFERROR(AVERAGEIFS(SvaruTabula[SVARS],SvaruTabula[DATUMS],\">=\"&H27,SvaruTabula[DATUMS],\"<=\"&I27),NA())","v":{"$error":"#N/A"}}]
[{"$f":"IF(('Svara zaudēšanas uzskaite'!C49=0)*('Svara zaudēšanas uzskaite'!C48=0),TRUE)","v":true},{"$f":"IF(A28,0,IF('Svara zaudēšanas uzskaite'!B49=0,'Svara zaudēšanas uzskaite'!B48+5,'Svara zaudēšanas uzskaite'!B49))","v":"00:00:00"},{"$f":"'Svara zaudēšanas uzskaite'!C49","v":0},{"$nulls":4},{"$error":"#N/A"},{"$error":"#N/A"},{"$f":"IFERROR(AVERAGEIFS(SvaruTabula[SVARS],SvaruTabula[DATUMS],\">=\"&H28,SvaruTabula[DATUMS],\"<=\"&I28),NA())","v":{"$error":"#N/A"}}]
[{"$f":"IF(('Svara zaudēšanas uzskaite'!C50=0)*('Svara zaudēšanas uzskaite'!C49=0),TRUE)","v":true},{"$f":"IF(A29,0,IF('Svara zaudēšanas uzskaite'!B50=0,'Svara zaudēšanas uzskaite'!B49+5,'Svara zaudēšanas uzskaite'!B50))","v":"00:00:00"},{"$f":"'Svara zaudēšanas uzskaite'!C50","v":0}]
[{"$f":"IF(('Svara zaudēšanas uzskaite'!C51=0)*('Svara zaudēšanas uzskaite'!C50=0),TRUE)","v":true},{"$f":"IF(A30,0,IF('Svara zaudēšanas uzskaite'!B51=0,'Svara zaudēšanas uzskaite'!B50+5,'Svara zaudēšanas uzskaite'!B51))","v":"00:00:00"},{"$f":"'Svara zaudēšanas uzskaite'!C51","v":0}]
[{"$f":"IF(('Svara zaudēšanas uzskaite'!C52=0)*('Svara zaudēšanas uzskaite'!C51=0),TRUE)","v":true},{"$f":"IF(A31,0,IF('Svara zaudēšanas uzskaite'!B52=0,'Svara zaudēšanas uzskaite'!B51+5,'Svara zaudēšanas uzskaite'!B52))","v":"00:00:00"},{"$f":"'Svara zaudēšanas uzskaite'!C52","v":0}]
[{"$f":"IF(('Svara zaudēšanas uzskaite'!C53=0)*('Svara zaudēšanas uzskaite'!C52=0),TRUE)","v":true},{"$f":"IF(A32,0,IF('Svara zaudēšanas uzskaite'!B53=0,'Svara zaudēšanas uzskaite'!B52+5,'Svara zaudēšanas uzskaite'!B53))","v":"00:00:00"},{"$f":"'Svara zaudēšanas uzskaite'!C53","v":0}]
[{"$f":"IF(('Svara zaudēšanas uzskaite'!C54=0)*('Svara zaudēšanas uzskaite'!C53=0),TRUE)","v":true},{"$f":"IF(A33,0,IF('Svara zaudēšanas uzskaite'!B54=0,'Svara zaudēšanas uzskaite'!B53+5,'Svara zaudēšanas uzskaite'!B54))","v":"00:00:00"},{"$f":"'Svara zaudēšanas uzskaite'!C54","v":0}]
[{"$f":"IF(('Svara zaudēšanas uzskaite'!C55=0)*('Svara zaudēšanas uzskaite'!C54=0),TRUE)","v":true},{"$f":"IF(A34,0,IF('Svara zaudēšanas uzskaite'!B55=0,'Svara zaudēšanas uzskaite'!B54+5,'Svara zaudēšanas uzskaite'!B55))","v":"00:00:00"},{"$f":"'Svara zaudēšanas uzskaite'!C55","v":0}]
[{"$f":"IF(('Svara zaudēšanas uzskaite'!C56=0)*('Svara zaudēšanas uzskaite'!C55=0),TRUE)","v":true},{"$f":"IF(A35,0,IF('Svara zaudēšanas uzskaite'!B56=0,'Svara zaudēšanas uzskaite'!B55+5,'Svara zaudēšanas uzskaite'!B56))","v":"00:00:00"},{"$f":"'Svara zaudēšanas uzskaite'!C56","v":0}]
[{"$f":"IF(('Svara zaudēšanas uzskaite'!C57=0)*('Svara zaudēšanas uzskaite'!C56=0),TRUE)","v":true},{"$f":"IF(A36,0,IF('Svara zaudēšanas uzskaite'!B57=0,'Svara zaudēšanas uzskaite'!B56+5,'Svara zaudēšanas uzskaite'!B57))","v":"00:00:00"},{"$f":"'Svara zaudēšanas uzskaite'!C57","v":0}]
[{"$f":"IF(('Svara zaudēšanas uzskaite'!C58=0)*('Svara zaudēšanas uzskaite'!C57=0),TRUE)","v":true},{"$f":"IF(A37,0,IF('Svara zaudēšanas uzskaite'!B58=0,'Svara zaudēšanas uzskaite'!B57+5,'Svara zaudēšanas uzskaite'!B58))","v":"00:00:00"},{"$f":"'Svara zaudēšanas uzskaite'!C58","v":0}]
[{"$f":"IF(('Svara zaudēšanas uzskaite'!C59=0)*('Svara zaudēšanas uzskaite'!C58=0),TRUE)","v":true},{"$f":"IF(A38,0,IF('Svara zaudēšanas uzskaite'!B59=0,'Svara zaudēšanas uzskaite'!B58+5,'Svara zaudēšanas uzskaite'!B59))","v":"00:00:00"},{"$f":"'Svara zaudēšanas uzskaite'!C59","v":0}]
[{"$f":"IF(('Svara zaudēšanas uzskaite'!C60=0)*('Svara zaudēšanas uzskaite'!C59=0),TRUE)","v":true},{"$f":"IF(A39,0,IF('Svara zaudēšanas uzskaite'!B60=0,'Svara zaudēšanas uzskaite'!B59+5,'Svara zaudēšanas uzskaite'!B60))","v":"00:00:00"},{"$f":"'Svara zaudēšanas uzskaite'!C60","v":0}]
[{"$f":"IF(('Svara zaudēšanas uzskaite'!C61=0)*('Svara zaudēšanas uzskaite'!C60=0),TRUE)","v":true},{"$f":"IF(A40,0,IF('Svara zaudēšanas uzskaite'!B61=0,'Svara zaudēšanas uzskaite'!B60+5,'Svara zaudēšanas uzskaite'!B61))","v":"00:00:00"},{"$f":"'Svara zaudēšanas uzskaite'!C61","v":0}]
[{"$f":"IF(('Svara zaudēšanas uzskaite'!C62=0)*('Svara zaudēšanas uzskaite'!C61=0),TRUE)","v":true},{"$f":"IF(A41,0,IF('Svara zaudēšanas uzskaite'!B62=0,'Svara zaudēšanas uzskaite'!B61+5,'Svara zaudēšanas uzskaite'!B62))","v":"00:00:00"},{"$f":"'Svara zaudēšanas uzskaite'!C62","v":0}]
[{"$f":"IF(('Svara zaudēšanas uzskaite'!C63=0)*('Svara zaudēšanas uzskaite'!C62=0),TRUE)","v":true},{"$f":"IF(A42,0,IF('Svara zaudēšanas uzskaite'!B63=0,'Svara zaudēšanas uzskaite'!B62+5,'Svara zaudēšanas uzskaite'!B63))","v":"00:00:00"},{"$f":"'Svara zaudēšanas uzskaite'!C63","v":0}]
[{"$f":"IF(('Svara zaudēšanas uzskaite'!C64=0)*('Svara zaudēšanas uzskaite'!C63=0),TRUE)","v":true},{"$f":"IF(A43,0,IF('Svara zaudēšanas uzskaite'!B64=0,'Svara zaudēšanas uzskaite'!B63+5,'Svara zaudēšanas uzskaite'!B64))","v":"00:00:00"},{"$f":"'Svara zaudēšanas uzskaite'!C64","v":0}]
[{"$f":"IF(('Svara zaudēšanas uzskaite'!C65=0)*('Svara zaudēšanas uzskaite'!C64=0),TRUE)","v":true},{"$f":"IF(A44,0,IF('Svara zaudēšanas uzskaite'!B65=0,'Svara zaudēšanas uzskaite'!B64+5,'Svara zaudēšanas uzskaite'!B65))","v":"00:00:00"},{"$f":"'Svara zaudēšanas uzskaite'!C65","v":0}]
[{"$f":"IF(('Svara zaudēšanas uzskaite'!C66=0)*('Svara zaudēšanas uzskaite'!C65=0),TRUE)","v":true},{"$f":"IF(A45,0,IF('Svara zaudēšanas uzskaite'!B66=0,'Svara zaudēšanas uzskaite'!B65+5,'Svara zaudēšanas uzskaite'!B66))","v":"00:00:00"},{"$f":"'Svara zaudēšanas uzskaite'!C66","v":0}]
[{"$f":"IF(('Svara zaudēšanas uzskaite'!C67=0)*('Svara zaudēšanas uzskaite'!C66=0),TRUE)","v":true},{"$f":"IF(A46,0,IF('Svara zaudēšanas uzskaite'!B67=0,'Svara zaudēšanas uzskaite'!B66+5,'Svara zaudēšanas uzskaite'!B67))","v":"00:00:00"},{"$f":"'Svara zaudēšanas uzskaite'!C67","v":0}]
[{"$f":"IF(('Svara zaudēšanas uzskaite'!C68=0)*('Svara zaudēšanas uzskaite'!C67=0),TRUE)","v":true},{"$f":"IF(A47,0,IF('Svara zaudēšanas uzskaite'!B68=0,'Svara zaudēšanas uzskaite'!B67+5,'Svara zaudēšanas uzskaite'!B68))","v":"00:00:00"},{"$f":"'Svara zaudēšanas uzskaite'!C68","v":0}]
[{"$f":"IF(('Svara zaudēšanas uzskaite'!C69=0)*('Svara zaudēšanas uzskaite'!C68=0),TRUE)","v":true},{"$f":"IF(A48,0,IF('Svara zaudēšanas uzskaite'!B69=0,'Svara zaudēšanas uzskaite'!B68+5,'Svara zaudēšanas uzskaite'!B69))","v":"00:00:00"},{"$f":"'Svara zaudēšanas uzskaite'!C69","v":0}]
[{"$f":"IF(('Svara zaudēšanas uzskaite'!C70=0)*('Svara zaudēšanas uzskaite'!C69=0),TRUE)","v":true},{"$f":"IF(A49,0,IF('Svara zaudēšanas uzskaite'!B70=0,'Svara zaudēšanas uzskaite'!B69+5,'Svara zaudēšanas uzskaite'!B70))","v":"00:00:00"},{"$f":"'Svara zaudēšanas uzskaite'!C70","v":0}]
[{"$f":"IF(('Svara zaudēšanas uzskaite'!C71=0)*('Svara zaudēšanas uzskaite'!C70=0),TRUE)","v":true},{"$f":"IF(A50,0,IF('Svara zaudēšanas uzskaite'!B71=0,'Svara zaudēšanas uzskaite'!B70+5,'Svara zaudēšanas uzskaite'!B71))","v":"00:00:00"},{"$f":"'Svara zaudēšanas uzskaite'!C71","v":0}]
[{"$f":"IF(('Svara zaudēšanas uzskaite'!C72=0)*('Svara zaudēšanas uzskaite'!C71=0),TRUE)","v":true},{"$f":"IF(A51,0,IF('Svara zaudēšanas uzskaite'!B72=0,'Svara zaudēšanas uzskaite'!B71+5,'Svara zaudēšanas uzskaite'!B72))","v":"00:00:00"},{"$f":"'Svara zaudēšanas uzskaite'!C72","v":0}]
[{"$f":"IF(('Svara zaudēšanas uzskaite'!C73=0)*('Svara zaudēšanas uzskaite'!C72=0),TRUE)","v":true},{"$f":"IF(A52,0,IF('Svara zaudēšanas uzskaite'!B73=0,'Svara zaudēšanas uzskaite'!B72+5,'Svara zaudēšanas uzskaite'!B73))","v":"00:00:00"},{"$f":"'Svara zaudēšanas uzskaite'!C73","v":0}]
[{"$f":"IF(('Svara zaudēšanas uzskaite'!C74=0)*('Svara zaudēšanas uzskaite'!C73=0),TRUE)","v":true},{"$f":"IF(A53,0,IF('Svara zaudēšanas uzskaite'!B74=0,'Svara zaudēšanas uzskaite'!B73+5,'Svara zaudēšanas uzskaite'!B74))","v":"00:00:00"},{"$f":"'Svara zaudēšanas uzskaite'!C74","v":0}]
[{"$f":"IF(('Svara zaudēšanas uzskaite'!C75=0)*('Svara zaudēšanas uzskaite'!C74=0),TRUE)","v":true},{"$f":"IF(A54,0,IF('Svara zaudēšanas uzskaite'!B75=0,'Svara zaudēšanas uzskaite'!B74+5,'Svara zaudēšanas uzskaite'!B75))","v":"00:00:00"},{"$f":"'Svara zaudēšanas uzskaite'!C75","v":0}]
[{"$f":"IF(('Svara zaudēšanas uzskaite'!C76=0)*('Svara zaudēšanas uzskaite'!C75=0),TRUE)","v":true},{"$f":"IF(A55,0,IF('Svara zaudēšanas uzskaite'!B76=0,'Svara zaudēšanas uzskaite'!B75+5,'Svara zaudēšanas uzskaite'!B76))","v":"00:00:00"},{"$f":"'Svara zaudēšanas uzskaite'!C76","v":0}]
[{"$f":"IF(('Svara zaudēšanas uzskaite'!C77=0)*('Svara zaudēšanas uzskaite'!C76=0),TRUE)","v":true},{"$f":"IF(A56,0,IF('Svara zaudēšanas uzskaite'!B77=0,'Svara zaudēšanas uzskaite'!B76+5,'Svara zaudēšanas uzskaite'!B77))","v":"00:00:00"},{"$f":"'Svara zaudēšanas uzskaite'!C77","v":0}]
[{"$f":"IF(('Svara zaudēšanas uzskaite'!C78=0)*('Svara zaudēšanas uzskaite'!C77=0),TRUE)","v":true},{"$f":"IF(A57,0,IF('Svara zaudēšanas uzskaite'!B78=0,'Svara zaudēšanas uzskaite'!B77+5,'Svara zaudēšanas uzskaite'!B78))","v":"00:00:00"},{"$f":"'Svara zaudēšanas uzskaite'!C78","v":0}]
[{"$f":"IF(('Svara zaudēšanas uzskaite'!C79=0)*('Svara zaudēšanas uzskaite'!C78=0),TRUE)","v":true},{"$f":"IF(A58,0,IF('Svara zaudēšanas uzskaite'!B79=0,'Svara zaudēšanas uzskaite'!B78+5,'Svara zaudēšanas uzskaite'!B79))","v":"00:00:00"},{"$f":"'Svara zaudēšanas uzskaite'!C79","v":0}]
[{"$f":"IF(('Svara zaudēšanas uzskaite'!C80=0)*('Svara zaudēšanas uzskaite'!C79=0),TRUE)","v":true},{"$f":"IF(A59,0,IF('Svara zaudēšanas uzskaite'!B80=0,'Svara zaudēšanas uzskaite'!B79+5,'Svara zaudēšanas uzskaite'!B80))","v":"00:00:00"},{"$f":"'Svara zaudēšanas uzskaite'!C80","v":0}]
[{"$f":"IF(('Svara zaudēšanas uzskaite'!C81=0)*('Svara zaudēšanas uzskaite'!C80=0),TRUE)","v":true},{"$f":"IF(A60,0,IF('Svara zaudēšanas uzskaite'!B81=0,'Svara zaudēšanas uzskaite'!B80+5,'Svara zaudēšanas uzskaite'!B81))","v":"00:00:00"},{"$f":"'Svara zaudēšanas uzskaite'!C81","v":0}]
[{"$f":"IF(('Svara zaudēšanas uzskaite'!C82=0)*('Svara zaudēšanas uzskaite'!C81=0),TRUE)","v":true},{"$f":"IF(A61,0,IF('Svara zaudēšanas uzskaite'!B82=0,'Svara zaudēšanas uzskaite'!B81+5,'Svara zaudēšanas uzskaite'!B82))","v":"00:00:00"},{"$f":"'Svara zaudēšanas uzskaite'!C82","v":0}]
[{"$f":"IF(('Svara zaudēšanas uzskaite'!C83=0)*('Svara zaudēšanas uzskaite'!C82=0),TRUE)","v":true},{"$f":"IF(A62,0,IF('Svara zaudēšanas uzskaite'!B83=0,'Svara zaudēšanas uzskaite'!B82+5,'Svara zaudēšanas uzskaite'!B83))","v":"00:00:00"},{"$f":"'Svara zaudēšanas uzskaite'!C83","v":0}]
[{"$f":"IF(('Svara zaudēšanas uzskaite'!C84=0)*('Svara zaudēšanas uzskaite'!C83=0),TRUE)","v":true},{"$f":"IF(A63,0,IF('Svara zaudēšanas uzskaite'!B84=0,'Svara zaudēšanas uzskaite'!B83+5,'Svara zaudēšanas uzskaite'!B84))","v":"00:00:00"},{"$f":"'Svara zaudēšanas uzskaite'!C84","v":0}]
[{"$f":"IF(('Svara zaudēšanas uzskaite'!C85=0)*('Svara zaudēšanas uzskaite'!C84=0),TRUE)","v":true},{"$f":"IF(A64,0,IF('Svara zaudēšanas uzskaite'!B85=0,'Svara zaudēšanas uzskaite'!B84+5,'Svara zaudēšanas uzskaite'!B85))","v":"00:00:00"},{"$f":"'Svara zaudēšanas uzskaite'!C85","v":0}]
[{"$f":"IF(('Svara zaudēšanas uzskaite'!C86=0)*('Svara zaudēšanas uzskaite'!C85=0),TRUE)","v":true},{"$f":"IF(A65,0,IF('Svara zaudēšanas uzskaite'!B86=0,'Svara zaudēšanas uzskaite'!B85+5,'Svara zaudēšanas uzskaite'!B86))","v":"00:00:00"},{"$f":"'Svara zaudēšanas uzskaite'!C86","v":0}]
[{"$f":"IF(('Svara zaudēšanas uzskaite'!C87=0)*('Svara zaudēšanas uzskaite'!C86=0),TRUE)","v":true},{"$f":"IF(A66,0,IF('Svara zaudēšanas uzskaite'!B87=0,'Svara zaudēšanas uzskaite'!B86+5,'Svara zaudēšanas uzskaite'!B87))","v":"00:00:00"},{"$f":"'Svara zaudēšanas uzskaite'!C87","v":0}]
[{"$f":"IF(('Svara zaudēšanas uzskaite'!C88=0)*('Svara zaudēšanas uzskaite'!C87=0),TRUE)","v":true},{"$f":"IF(A67,0,IF('Svara zaudēšanas uzskaite'!B88=0,'Svara zaudēšanas uzskaite'!B87+5,'Svara zaudēšanas uzskaite'!B88))","v":"00:00:00"},{"$f":"'Svara zaudēšanas uzskaite'!C88","v":0}]
[{"$f":"IF(('Svara zaudēšanas uzskaite'!C89=0)*('Svara zaudēšanas uzskaite'!C88=0),TRUE)","v":true},{"$f":"IF(A68,0,IF('Svara zaudēšanas uzskaite'!B89=0,'Svara zaudēšanas uzskaite'!B88+5,'Svara zaudēšanas uzskaite'!B89))","v":"00:00:00"},{"$f":"'Svara zaudēšanas uzskaite'!C89","v":0}]
[{"$f":"IF(('Svara zaudēšanas uzskaite'!C90=0)*('Svara zaudēšanas uzskaite'!C89=0),TRUE)","v":true},{"$f":"IF(A69,0,IF('Svara zaudēšanas uzskaite'!B90=0,'Svara zaudēšanas uzskaite'!B89+5,'Svara zaudēšanas uzskaite'!B90))","v":"00:00:00"},{"$f":"'Svara zaudēšanas uzskaite'!C90","v":0}]
[{"$f":"IF(('Svara zaudēšanas uzskaite'!C91=0)*('Svara zaudēšanas uzskaite'!C90=0),TRUE)","v":true},{"$f":"IF(A70,0,IF('Svara zaudēšanas uzskaite'!B91=0,'Svara zaudēšanas uzskaite'!B90+5,'Svara zaudēšanas uzskaite'!B91))","v":"00:00:00"},{"$f":"'Svara zaudēšanas uzskaite'!C91","v":0}]
[{"$f":"IF(('Svara zaudēšanas uzskaite'!C92=0)*('Svara zaudēšanas uzskaite'!C91=0),TRUE)","v":true},{"$f":"IF(A71,0,IF('Svara zaudēšanas uzskaite'!B92=0,'Svara zaudēšanas uzskaite'!B91+5,'Svara zaudēšanas uzskaite'!B92))","v":"00:00:00"},{"$f":"'Svara zaudēšanas uzskaite'!C92","v":0}]
[{"$f":"IF(('Svara zaudēšanas uzskaite'!C93=0)*('Svara zaudēšanas uzskaite'!C92=0),TRUE)","v":true},{"$f":"IF(A72,0,IF('Svara zaudēšanas uzskaite'!B93=0,'Svara zaudēšanas uzskaite'!B92+5,'Svara zaudēšanas uzskaite'!B93))","v":"00:00:00"},{"$f":"'Svara zaudēšanas uzskaite'!C93","v":0}]
[{"$f":"IF(('Svara zaudēšanas uzskaite'!C94=0)*('Svara zaudēšanas uzskaite'!C93=0),TRUE)","v":true},{"$f":"IF(A73,0,IF('Svara zaudēšanas uzskaite'!B94=0,'Svara zaudēšanas uzskaite'!B93+5,'Svara zaudēšanas uzskaite'!B94))","v":"00:00:00"},{"$f":"'Svara zaudēšanas uzskaite'!C94","v":0}]
[{"$f":"IF(('Svara zaudēšanas uzskaite'!C95=0)*('Svara zaudēšanas uzskaite'!C94=0),TRUE)","v":true},{"$f":"IF(A74,0,IF('Svara zaudēšanas uzskaite'!B95=0,'Svara zaudēšanas uzskaite'!B94+5,'Svara zaudēšanas uzskaite'!B95))","v":"00:00:00"},{"$f":"'Svara zaudēšanas uzskaite'!C95","v":0}]
[{"$f":"IF(('Svara zaudēšanas uzskaite'!C96=0)*('Svara zaudēšanas uzskaite'!C95=0),TRUE)","v":true},{"$f":"IF(A75,0,IF('Svara zaudēšanas uzskaite'!B96=0,'Svara zaudēšanas uzskaite'!B95+5,'Svara zaudēšanas uzskaite'!B96))","v":"00:00:00"},{"$f":"'Svara zaudēšanas uzskaite'!C96","v":0}]
[{"$f":"IF(('Svara zaudēšanas uzskaite'!C97=0)*('Svara zaudēšanas uzskaite'!C96=0),TRUE)","v":true},{"$f":"IF(A76,0,IF('Svara zaudēšanas uzskaite'!B97=0,'Svara zaudēšanas uzskaite'!B96+5,'Svara zaudēšanas uzskaite'!B97))","v":"00:00:00"},{"$f":"'Svara zaudēšanas uzskaite'!C97","v":0}]
[{"$f":"IF(('Svara zaudēšanas uzskaite'!C98=0)*('Svara zaudēšanas uzskaite'!C97=0),TRUE)","v":true},{"$f":"IF(A77,0,IF('Svara zaudēšanas uzskaite'!B98=0,'Svara zaudēšanas uzskaite'!B97+5,'Svara zaudēšanas uzskaite'!B98))","v":"00:00:00"},{"$f":"'Svara zaudēšanas uzskaite'!C98","v":0}]
[{"$f":"IF(('Svara zaudēšanas uzskaite'!C99=0)*('Svara zaudēšanas uzskaite'!C98=0),TRUE)","v":true},{"$f":"IF(A78,0,IF('Svara zaudēšanas uzskaite'!B99=0,'Svara zaudēšanas uzskaite'!B98+5,'Svara zaudēšanas uzskaite'!B99))","v":"00:00:00"},{"$f":"'Svara zaudēšanas uzskaite'!C99","v":0}]
[{"$f":"IF(('Svara zaudēšanas uzskaite'!C100=0)*('Svara zaudēšanas uzskaite'!C99=0),TRUE)","v":true},{"$f":"IF(A79,0,IF('Svara zaudēšanas uzskaite'!B100=0,'Svara zaudēšanas uzskaite'!B99+5,'Svara zaudēšanas uzskaite'!B100))","v":"00:00:00"},{"$f":"'Svara zaudēšanas uzskaite'!C100","v":0}]
[{"$f":"IF(('Svara zaudēšanas uzskaite'!C101=0)*('Svara zaudēšanas uzskaite'!C100=0),TRUE)","v":true},{"$f":"IF(A80,0,IF('Svara zaudēšanas uzskaite'!B101=0,'Svara zaudēšanas uzskaite'!B100+5,'Svara zaudēšanas uzskaite'!B101))","v":"00:00:00"},{"$f":"'Svara zaudēšanas uzskaite'!C101","v":0}]
[{"$f":"IF(('Svara zaudēšanas uzskaite'!C102=0)*('Svara zaudēšanas uzskaite'!C101=0),TRUE)","v":true},{"$f":"IF(A81,0,IF('Svara zaudēšanas uzskaite'!B102=0,'Svara zaudēšanas uzskaite'!B101+5,'Svara zaudēšanas uzskaite'!B102))","v":"00:00:00"},{"$f":"'Svara zaudēšanas uzskaite'!C102","v":0}]
[{"$f":"IF(('Svara zaudēšanas uzskaite'!C103=0)*('Svara zaudēšanas uzskaite'!C102=0),TRUE)","v":true},{"$f":"IF(A82,0,IF('Svara zaudēšanas uzskaite'!B103=0,'Svara zaudēšanas uzskaite'!B102+5,'Svara zaudēšanas uzskaite'!B103))","v":"00:00:00"},{"$f":"'Svara zaudēšanas uzskaite'!C103","v":0}]
[{"$f":"IF(('Svara zaudēšanas uzskaite'!C104=0)*('Svara zaudēšanas uzskaite'!C103=0),TRUE)","v":true},{"$f":"IF(A83,0,IF('Svara zaudēšanas uzskaite'!B104=0,'Svara zaudēšanas uzskaite'!B103+5,'Svara zaudēšanas uzskaite'!B104))","v":"00:00:00"},{"$f":"'Svara zaudēšanas uzskaite'!C104","v":0}]
[{"$f":"IF(('Svara zaudēšanas uzskaite'!C105=0)*('Svara zaudēšanas uzskaite'!C104=0),TRUE)","v":true},{"$f":"IF(A84,0,IF('Svara zaudēšanas uzskaite'!B105=0,'Svara zaudēšanas uzskaite'!B104+5,'Svara zaudēšanas uzskaite'!B105))","v":"00:00:00"},{"$f":"'Svara zaudēšanas uzskaite'!C105","v":0}]
[{"$f":"IF(('Svara zaudēšanas uzskaite'!C106=0)*('Svara zaudēšanas uzskaite'!C105=0),TRUE)","v":true},{"$f":"IF(A85,0,IF('Svara zaudēšanas uzskaite'!B106=0,'Svara zaudēšanas uzskaite'!B105+5,'Svara zaudēšanas uzskaite'!B106))","v":"00:00:00"},{"$f":"'Svara zaudēšanas uzskaite'!C106","v":0}]
[{"$f":"IF(('Svara zaudēšanas uzskaite'!C107=0)*('Svara zaudēšanas uzskaite'!C106=0),TRUE)","v":true},{"$f":"IF(A86,0,IF('Svara zaudēšanas uzskaite'!B107=0,'Svara zaudēšanas uzskaite'!B106+5,'Svara zaudēšanas uzskaite'!B107))","v":"00:00:00"},{"$f":"'Svara zaudēšanas uzskaite'!C107","v":0}]
[{"$f":"IF(('Svara zaudēšanas uzskaite'!C108=0)*('Svara zaudēšanas uzskaite'!C107=0),TRUE)","v":true},{"$f":"IF(A87,0,IF('Svara zaudēšanas uzskaite'!B108=0,'Svara zaudēšanas uzskaite'!B107+5,'Svara zaudēšanas uzskaite'!B108))","v":"00:00:00"},{"$f":"'Svara zaudēšanas uzskaite'!C108","v":0}]
[{"$f":"IF(('Svara zaudēšanas uzskaite'!C109=0)*('Svara zaudēšanas uzskaite'!C108=0),TRUE)","v":true},{"$f":"IF(A88,0,IF('Svara zaudēšanas uzskaite'!B109=0,'Svara zaudēšanas uzskaite'!B108+5,'Svara zaudēšanas uzskaite'!B109))","v":"00:00:00"},{"$f":"'Svara zaudēšanas uzskaite'!C109","v":0}]
[{"$f":"IF(('Svara zaudēšanas uzskaite'!C110=0)*('Svara zaudēšanas uzskaite'!C109=0),TRUE)","v":true},{"$f":"IF(A89,0,IF('Svara zaudēšanas uzskaite'!B110=0,'Svara zaudēšanas uzskaite'!B109+5,'Svara zaudēšanas uzskaite'!B110))","v":"00:00:00"},{"$f":"'Svara zaudēšanas uzskaite'!C110","v":0}]
[{"$f":"IF(('Svara zaudēšanas uzskaite'!C111=0)*('Svara zaudēšanas uzskaite'!C110=0),TRUE)","v":true},{"$f":"IF(A90,0,IF('Svara zaudēšanas uzskaite'!B111=0,'Svara zaudēšanas uzskaite'!B110+5,'Svara zaudēšanas uzskaite'!B111))","v":"00:00:00"},{"$f":"'Svara zaudēšanas uzskaite'!C111","v":0}]
[{"$f":"IF(('Svara zaudēšanas uzskaite'!C112=0)*('Svara zaudēšanas uzskaite'!C111=0),TRUE)","v":true},{"$f":"IF(A91,0,IF('Svara zaudēšanas uzskaite'!B112=0,'Svara zaudēšanas uzskaite'!B111+5,'Svara zaudēšanas uzskaite'!B112))","v":"00:00:00"},{"$f":"'Svara zaudēšanas uzskaite'!C112","v":0}]
[{"$f":"IF(('Svara zaudēšanas uzskaite'!C113=0)*('Svara zaudēšanas uzskaite'!C112=0),TRUE)","v":true},{"$f":"IF(A92,0,IF('Svara zaudēšanas uzskaite'!B113=0,'Svara zaudēšanas uzskaite'!B112+5,'Svara zaudēšanas uzskaite'!B113))","v":"00:00:00"},{"$f":"'Svara zaudēšanas uzskaite'!C113","v":0}]
[{"$f":"IF(('Svara zaudēšanas uzskaite'!C114=0)*('Svara zaudēšanas uzskaite'!C113=0),TRUE)","v":true},{"$f":"IF(A93,0,IF('Svara zaudēšanas uzskaite'!B114=0,'Svara zaudēšanas uzskaite'!B113+5,'Svara zaudēšanas uzskaite'!B114))","v":"00:00:00"},{"$f":"'Svara zaudēšanas uzskaite'!C114","v":0}]
[{"$f":"IF(('Svara zaudēšanas uzskaite'!C115=0)*('Svara zaudēšanas uzskaite'!C114=0),TRUE)","v":true},{"$f":"IF(A94,0,IF('Svara zaudēšanas uzskaite'!B115=0,'Svara zaudēšanas uzskaite'!B114+5,'Svara zaudēšanas uzskaite'!B115))","v":"00:00:00"},{"$f":"'Svara zaudēšanas uzskaite'!C115","v":0}]
[{"$f":"IF(('Svara zaudēšanas uzskaite'!C116=0)*('Svara zaudēšanas uzskaite'!C115=0),TRUE)","v":true},{"$f":"IF(A95,0,IF('Svara zaudēšanas uzskaite'!B116=0,'Svara zaudēšanas uzskaite'!B115+5,'Svara zaudēšanas uzskaite'!B116))","v":"00:00:00"},{"$f":"'Svara zaudēšanas uzskaite'!C116","v":0}]
[{"$f":"IF(('Svara zaudēšanas uzskaite'!C117=0)*('Svara zaudēšanas uzskaite'!C116=0),TRUE)","v":true},{"$f":"IF(A96,0,IF('Svara zaudēšanas uzskaite'!B117=0,'Svara zaudēšanas uzskaite'!B116+5,'Svara zaudēšanas uzskaite'!B117))","v":"00:00:00"},{"$f":"'Svara zaudēšanas uzskaite'!C117","v":0}]
[{"$f":"IF(('Svara zaudēšanas uzskaite'!C118=0)*('Svara zaudēšanas uzskaite'!C117=0),TRUE)","v":true},{"$f":"IF(A97,0,IF('Svara zaudēšanas uzskaite'!B118=0,'Svara zaudēšanas uzskaite'!B117+5,'Svara zaudēšanas uzskaite'!B118))","v":"00:00:00"},{"$f":"'Svara zaudēšanas uzskaite'!C118","v":0}]
[{"$f":"IF(('Svara zaudēšanas uzskaite'!C119=0)*('Svara zaudēšanas uzskaite'!C118=0),TRUE)","v":true},{"$f":"IF(A98,0,IF('Svara zaudēšanas uzskaite'!B119=0,'Svara zaudēšanas uzskaite'!B118+5,'Svara zaudēšanas uzskaite'!B119))","v":"00:00:00"},{"$f":"'Svara zaudēšanas uzskaite'!C119","v":0}]
[{"$f":"IF(('Svara zaudēšanas uzskaite'!C120=0)*('Svara zaudēšanas uzskaite'!C119=0),TRUE)","v":true},{"$f":"IF(A99,0,IF('Svara zaudēšanas uzskaite'!B120=0,'Svara zaudēšanas uzskaite'!B119+5,'Svara zaudēšanas uzskaite'!B120))","v":"00:00:00"},{"$f":"'Svara zaudēšanas uzskaite'!C120","v":0}]
[{"$f":"IF(('Svara zaudēšanas uzskaite'!C121=0)*('Svara zaudēšanas uzskaite'!C120=0),TRUE)","v":true},{"$f":"IF(A100,0,IF('Svara zaudēšanas uzskaite'!B121=0,'Svara zaudēšanas uzskaite'!B120+5,'Svara zaudēšanas uzskaite'!B121))","v":"00:00:00"},{"$f":"'Svara zaudēšanas uzskaite'!C121","v":0}]
[{"$f":"IF(('Svara zaudēšanas uzskaite'!C122=0)*('Svara zaudēšanas uzskaite'!C121=0),TRUE)","v":true},{"$f":"IF(A101,0,IF('Svara zaudēšanas uzskaite'!B122=0,'Svara zaudēšanas uzskaite'!B121+5,'Svara zaudēšanas uzskaite'!B122))","v":"00:00:00"},{"$f":"'Svara zaudēšanas uzskaite'!C122","v":0}]
[{"$f":"IF(('Svara zaudēšanas uzskaite'!C123=0)*('Svara zaudēšanas uzskaite'!C122=0),TRUE)","v":true},{"$f":"IF(A102,0,IF('Svara zaudēšanas uzskaite'!B123=0,'Svara zaudēšanas uzskaite'!B122+5,'Svara zaudēšanas uzskaite'!B123))","v":"00:00:00"},{"$f":"'Svara zaudēšanas uzskaite'!C123","v":0}]
[{"$f":"IF(('Svara zaudēšanas uzskaite'!C124=0)*('Svara zaudēšanas uzskaite'!C123=0),TRUE)","v":true},{"$f":"IF(A103,0,IF('Svara zaudēšanas uzskaite'!B124=0,'Svara zaudēšanas uzskaite'!B123+5,'Svara zaudēšanas uzskaite'!B124))","v":"00:00:00"},{"$f":"'Svara zaudēšanas uzskaite'!C124","v":0}]
[{"$f":"IF(('Svara zaudēšanas uzskaite'!C125=0)*('Svara zaudēšanas uzskaite'!C124=0),TRUE)","v":true},{"$f":"IF(A104,0,IF('Svara zaudēšanas uzskaite'!B125=0,'Svara zaudēšanas uzskaite'!B124+5,'Svara zaudēšanas uzskaite'!B125))","v":"00:00:00"},{"$f":"'Svara zaudēšanas uzskaite'!C125","v":0}]
[{"$f":"IF(('Svara zaudēšanas uzskaite'!C126=0)*('Svara zaudēšanas uzskaite'!C125=0),TRUE)","v":true},{"$f":"IF(A105,0,IF('Svara zaudēšanas uzskaite'!B126=0,'Svara zaudēšanas uzskaite'!B125+5,'Svara zaudēšanas uzskaite'!B126))","v":"00:00:00"},{"$f":"'Svara zaudēšanas uzskaite'!C126","v":0}]
[{"$f":"IF(('Svara zaudēšanas uzskaite'!C127=0)*('Svara zaudēšanas uzskaite'!C126=0),TRUE)","v":true},{"$f":"IF(A106,0,IF('Svara zaudēšanas uzskaite'!B127=0,'Svara zaudēšanas uzskaite'!B126+5,'Svara zaudēšanas uzskaite'!B127))","v":"00:00:00"},{"$f":"'Svara zaudēšanas uzskaite'!C127","v":0}]
[{"$f":"IF(('Svara zaudēšanas uzskaite'!C128=0)*('Svara zaudēšanas uzskaite'!C127=0),TRUE)","v":true},{"$f":"IF(A107,0,IF('Svara zaudēšanas uzskaite'!B128=0,'Svara zaudēšanas uzskaite'!B127+5,'Svara zaudēšanas uzskaite'!B128))","v":"00:00:00"},{"$f":"'Svara zaudēšanas uzskaite'!C128","v":0}]
[{"$f":"IF(('Svara zaudēšanas uzskaite'!C129=0)*('Svara zaudēšanas uzskaite'!C128=0),TRUE)","v":true},{"$f":"IF(A108,0,IF('Svara zaudēšanas uzskaite'!B129=0,'Svara zaudēšanas uzskaite'!B128+5,'Svara zaudēšanas uzskaite'!B129))","v":"00:00:00"},{"$f":"'Svara zaudēšanas uzskaite'!C129","v":0}]